bitfinex-derivatives/quotes_BTCF0:USTF0_20250614
["timestamp","ask_amount","ask_price","bid_price","bid_amount"]
[1749866603265,0.1923742,105560.0,105550.0,2.14017805]
[1749866603470,0.1923742,105560.0,105550.0,2.15063813]
[1749866603775,0.1923742,105560.0,105550.0,2.12031738]
[1749866603977,0.1923742,105560.0,105550.0,2.1203157]
[1749866604175,0.1923742,105560.0,105550.0,2.12014743]
[1749866604372,0.1923742,105560.0,105550.0,2.12014739]
[1749866604570,0.1923742,105560.0,105550.0,2.12015241]
[1749866604771,0.1923742,105560.0,105550.0,2.1201524]
[1749866604971,0.1923742,105560.0,105550.0,2.09488513]
[1749866605278,0.1923742,105560.0,105550.0,2.12015244]
[1749866605475,0.1923742,105560.0,105550.0,2.09488513]
[1749866605670,0.1923742,105560.0,105550.0,2.10534838]
[1749866605870,0.1923742,105560.0,105550.0,2.09639268]
[1749866606177,0.1923742,105560.0,105550.0,2.12015231]
[1749866606379,0.1923742,105560.0,105550.0,2.10534835]
[1749866606577,0.1923742,105560.0,105550.0,2.12015243]
[1749866606971,0.1923742,105560.0,105550.0,2.14969088]
[1749866607172,0.1923742,105560.0,105550.0,2.16449495]
[1749866607379,0.1923742,105560.0,105550.0,2.15119061]
[1749866607880,0.1923742,105560.0,105550.0,2.16445752]
[1749866608075,0.1923742,105560.0,105550.0,2.14073516]
[1749866608283,0.1923742,105560.0,105550.0,2.12593108]
[1749866608474,0.1923742,105560.0,105550.0,2.16441754]
[1749866608779,0.1923742,105560.0,105550.0,2.10527103]
[1749866609077,0.1923742,105560.0,105550.0,2.09200415]
[1749866609276,0.1923742,105560.0,105550.0,2.0815486]
[1749866609473,0.1923742,105560.0,105550.0,2.15396623]
[1749866609670,0.1923742,105560.0,105550.0,2.14069913]
[1749866609875,0.1923742,105560.0,105550.0,2.15400774]
[1749866610081,0.1923742,105560.0,105550.0,2.12589472]
[1749866610382,0.1923742,105560.0,105550.0,2.15400645]
[1749866610681,0.1923742,105560.0,105550.0,2.13918262]
[1749866610883,0.1923742,105560.0,105550.0,2.15398023]
[1749866611183,0.1923742,105560.0,105550.0,2.14963865]
[1749866611477,0.1923742,105560.0,105550.0,2.14963878]
[1749866611678,0.1923742,105560.0,105550.0,2.14069891]
[1749866611883,0.1923742,105560.0,105550.0,2.15397926]
[1749866612183,0.1923742,105560.0,105550.0,2.16444235]
[1749866612383,0.1923742,105560.0,105550.0,2.1391754]
[1749866612580,0.1923742,105560.0,105550.0,2.16444514]
[1749866612780,0.1923742,105560.0,105550.0,2.1391754]
[1749866612981,0.1923742,105560.0,105550.0,2.16443704]
[1749866613179,0.1923742,105560.0,105550.0,2.16442677]
[1749866613482,0.1923742,105560.0,105550.0,2.16442682]
[1749866613678,0.1923742,105560.0,105550.0,2.16442672]
[1749866613880,0.1923742,105560.0,105550.0,2.16442663]
[1749866614071,0.1923742,105560.0,105550.0,2.16442673]
[1749866614276,0.1923742,105560.0,105550.0,2.16443043]
[1749866614582,0.1923742,105560.0,105550.0,2.13916815]
[1749866614784,0.1923742,105560.0,105550.0,2.1539722]
[1749866614976,0.1923742,105560.0,105550.0,2.15115615]
[1749866615177,0.1923742,105560.0,105550.0,2.14962535]
[1749866615381,0.1923742,105560.0,105550.0,2.16442963]
[1749866615685,0.1923742,105560.0,105550.0,2.16442968]
[1749866615877,0.1923742,105560.0,105550.0,2.1644297]
[1749866616076,0.1923742,105560.0,105550.0,2.14962552]
[1749866616377,0.1923742,105560.0,105550.0,2.14962549]
[1749866616576,0.1923742,105560.0,105550.0,2.16442964]
[1749866616777,0.1923742,105560.0,105550.0,2.13635199]
[1749866616973,0.1923742,105560.0,105550.0,2.15115617]
[1749866617177,0.1923742,105560.0,105550.0,2.16442949]
[1749866617376,0.1923742,105560.0,105550.0,2.16442946]
[1749866617578,0.1923742,105560.0,105550.0,2.15397228]
[1749866617780,0.1923742,105560.0,105550.0,2.14962542]
[1749866618078,0.1923742,105560.0,105550.0,2.16442948]
[1749866618479,0.1923742,105560.0,105550.0,2.14962499]
[1749866618783,0.1923742,105560.0,105550.0,2.16442907]
[1749866619177,0.1923742,105560.0,105550.0,2.14962539]
[1749866619379,0.1923742,105560.0,105550.0,2.15115649]
[1749866619579,0.1923742,105560.0,105550.0,2.1511564]
[1749866619786,0.1923742,105560.0,105550.0,2.16442998]
[1749866619988,0.1923742,105560.0,105550.0,2.12589472]
[1749866620289,0.1923742,105560.0,105550.0,2.16442984]
[1749866620885,0.1923742,105560.0,105550.0,2.11761155]
[1749866621186,0.2871742,105560.0,105550.0,2.05855975]
[1749866621376,0.2871742,105560.0,105550.0,2.05855976]
[1749866621579,0.2871742,105560.0,105550.0,2.0690162]
[1749866621778,0.2871742,105560.0,105550.0,2.05421262]
[1749866622085,0.2871742,105560.0,105550.0,2.03047472]
[1749866622280,0.2871742,105560.0,105550.0,2.0542126]
[1749866622582,0.2871742,105560.0,105550.0,1.10951472]
[1749866622788,0.2871742,105560.0,105550.0,2.08702056]
[1749866622980,0.2871742,105560.0,105550.0,2.1118349]
[1749866623185,0.2871742,105560.0,105550.0,2.08373915]
[1749866623384,0.2871742,105560.0,105550.0,2.11183502]
[1749866623585,0.2871742,105560.0,105550.0,2.08807897]
[1749866623792,0.2871742,105560.0,105550.0,2.1118351]
[1749866623988,0.2871742,105560.0,105550.0,1.1580751]
[1749866624181,0.2871742,105560.0,105550.0,2.1118351]
[1749866624387,0.2225742,105560.0,105550.0,2.11183509]
[1749866624584,0.2225742,105560.0,105550.0,2.1749351]
[1749866624982,0.2225742,105560.0,105550.0,2.17493503]
[1749866625191,0.2225742,105560.0,105550.0,2.17493482]
[1749866625496,0.2225742,105560.0,105550.0,2.17493481]
[1749866625790,0.2225742,105560.0,105550.0,2.17493494]
[1749866625985,0.2225742,105560.0,105550.0,2.1496664]
[1749866626179,0.2225742,105560.0,105550.0,2.15117897]
[1749866626388,0.2225742,105560.0,105550.0,2.13637472]
[1749866626688,0.2225742,105560.0,105550.0,2.1644706]
[1749866626884,0.2225742,105560.0,105550.0,2.07146819]
[1749866627087,0.2225742,105560.0,105550.0,2.0581767]
[1749866627285,0.2225742,105560.0,105550.0,2.04619967]
[1749866627590,0.2225742,105560.0,105550.0,2.07146827]
[1749866627789,0.2225742,105560.0,105550.0,2.04771229]
[1749866628091,0.2225742,105560.0,105550.0,2.05817533]
[1749866628277,0.2225742,105560.0,105550.0,2.11581142]
[1749866628476,0.2225742,105560.0,105550.0,2.10100719]
[1749866628687,0.2225742,105560.0,105550.0,2.10534795]
[1749866628886,0.2225742,105560.0,105550.0,2.10100673]
[1749866629288,0.2225742,105560.0,105550.0,2.11581086]
[1749866629488,0.2225742,105560.0,105550.0,2.11581068]
[1749866629684,0.2225742,105560.0,105550.0,2.09054347]
[1749866629885,0.2225742,105560.0,105550.0,2.08771714]
[1749866630089,0.2225742,105560.0,105550.0,2.10534723]
[1749866630289,0.2225742,105560.0,105550.0,1.15158723]
[1749866630590,0.2225742,105560.0,105550.0,2.09038299]
[1749866630987,0.2225742,105560.0,105550.0,2.10518724]
[1749866631188,0.2225742,105560.0,105550.0,1.75236136]
[1749866631388,0.2225742,105560.0,105550.0,2.08755709]
[1749866631582,0.2225742,105560.0,105550.0,2.0918984]
[1749866631884,0.2225742,105560.0,105550.0,2.08755716]
[1749866632088,0.2225742,105560.0,105550.0,2.11565014]
[1749866632284,0.2225742,105560.0,105550.0,2.10518724]
[1749866632484,0.2225742,105560.0,105550.0,2.10236143]
[1749866632691,0.2225742,105560.0,105550.0,2.11565028]
[1749866632887,0.2225742,105560.0,105550.0,2.10236134]
[1749866633187,0.2225742,105560.0,105550.0,2.07709416]
[1749866633395,0.2225742,105560.0,105550.0,2.10084585]
[1749866633689,0.2225742,105560.0,105550.0,2.11565005]
[1749866633891,0.2225742,105560.0,105550.0,2.08746615]
[1749866634092,0.2225742,105560.0,105550.0,2.08746612]
[1749866634292,0.2225742,105560.0,105550.0,2.10227033]
[1749866634486,0.2225742,105560.0,105550.0,2.10227037]
[1749866634689,0.2225742,105560.0,105550.0,2.0741774]
[1749866634896,0.2225742,105560.0,105550.0,2.06371446]
[1749866635090,0.2225742,105560.0,105550.0,2.10225192]
[1749866635280,0.2225742,105560.0,105550.0,2.07851855]
[1749866635485,0.2225742,105560.0,105550.0,2.08744318]
[1749866635683,0.2225742,105560.0,105550.0,2.09178439]
[1749866635993,0.1923742,105560.0,105550.0,2.09175791]
[1749866636186,0.1923742,105560.0,105550.0,2.1022203]
[1749866636492,0.1923742,105560.0,105550.0,2.10221703]
[1749866636789,0.1923742,105560.0,105550.0,2.10221683]
[1749866636991,0.1923742,105560.0,105550.0,2.11699167]
[1749866637691,0.1923742,105560.0,105550.0,2.09329272]
[1749866637992,0.1923742,105560.0,105550.0,2.11699169]
[1749866638184,0.1923742,105560.0,105550.0,2.11698957]
[1749866638386,0.1923742,105560.0,105550.0,2.11694957]
[1749866638587,0.1923742,105560.0,105550.0,2.10371538]
[1749866638889,0.1923742,105560.0,105550.0,2.11694402]
[1749866639092,0.1923742,105560.0,105550.0,2.3768489]
[1749866639297,0.1923742,105560.0,105550.0,2.40054016]
[1749866639588,0.1923742,105560.0,105550.0,2.40488704]
[1749866639794,0.1923742,105560.0,105550.0,2.41534418]
[1749866639994,0.1923742,105560.0,105550.0,2.40211038]
[1749866640195,0.1923742,105560.0,105550.0,2.39010194]
[1749866640385,0.1923742,105560.0,105550.0,2.41536342]
[1749866640690,0.1923742,105560.0,105550.0,1.45134595]
[1749866640998,0.2884742,105560.0,105550.0,2.42814434]
[1749866641184,0.2884742,105560.0,105550.0,2.42814561]
[1749866641384,0.2884742,105560.0,105550.0,2.41342539]
[1749866641590,0.2884742,105560.0,105550.0,2.41777666]
[1749866641791,0.2884742,105560.0,105550.0,2.40297185]
[1749866642084,0.2884742,105560.0,105550.0,2.40008769]
[1749866642391,0.2884742,105560.0,105550.0,2.40008757]
[1749866642596,0.2884742,105560.0,105550.0,2.42820555]
[1749866642796,0.2884742,105560.0,105550.0,2.41774684]
[1749866642996,0.2884742,105560.0,105550.0,2.42821428]
[1749866643198,0.2884742,105560.0,105550.0,2.41340958]
[1749866643390,0.2884742,105560.0,105550.0,2.4282091]
[1749866643591,0.2884742,105560.0,105550.0,2.40443331]
[1749866643787,0.2884742,105560.0,105550.0,2.41342223]
[1749866644095,0.2884742,105560.0,105550.0,2.41489358]
[1749866644399,0.2884742,105560.0,105550.0,2.41776659]
[1749866644595,0.2884742,105560.0,105550.0,2.41489353]
[1749866644794,0.2884742,105560.0,105550.0,1.43420502]
[1749866644995,0.2884742,105560.0,105550.0,1.34135889]
[1749866645200,0.2884742,105560.0,105550.0,1.27036665]
[1749866645498,0.2884742,105560.0,105550.0,1.27177338]
[1749866645694,0.2884742,105560.0,105550.0,0.3139134]
[1749866645900,0.2884742,105560.0,105550.0,1.2674334]
[1749866646101,0.2884742,105560.0,105550.0,1.29563713]
[1749866646401,0.2884742,105560.0,105550.0,1.27036685]
[1749866646594,0.2884742,105560.0,105550.0,1.26743303]
[1749866646795,0.2884742,105560.0,105550.0,1.25696825]
[1749866646993,0.2884742,105560.0,105550.0,1.34435241]
[1749866647187,0.2884742,105560.0,105550.0,1.29569313]
[1749866647699,0.2884742,105560.0,105550.0,1.282237]
[1749866647902,0.2884742,105560.0,105550.0,1.34435052]
[1749866648201,0.2884742,105560.0,105550.0,1.35481732]
[1749866648393,0.2884742,105560.0,105550.0,1.3400122]
[1749866648587,0.2884742,105560.0,105550.0,1.35481704]
[1749866648793,0.2884742,105560.0,105550.0,2.06555093]
[1749866649098,0.2884742,105560.0,105550.0,1.70074115]
[1749866649292,0.2884742,105560.0,105550.0,1.70472836]
[1749866649492,0.2884742,105560.0,105550.0,1.99304048]
[1749866649697,0.2884742,105560.0,105550.0,1.62177347]
[1749866649999,0.2884742,105560.0,105550.0,1.64565768]
[1749866650198,0.2884742,105560.0,105550.0,1.6456577]
[1749866650387,0.2884742,105560.0,105550.0,1.62038512]
[1749866650793,0.2884742,105560.0,105550.0,1.63520294]
[1749866651093,0.2884742,105560.0,105550.0,1.62038501]
[1749866651300,0.2884742,105560.0,105550.0,1.63085176]
[1749866651498,0.2884742,105560.0,105550.0,1.64565738]
[1749866651700,0.2884742,105560.0,105550.0,1.99600036]
[1749866651895,0.2884742,105560.0,105550.0,2.00645585]
[1749866652197,0.2884742,105560.0,105550.0,1.96776825]
[1749866652396,0.2884742,105560.0,105550.0,1.98117337]
[1749866652702,0.2884742,105560.0,105550.0,1.64563632]
[1749866652897,0.2884742,105560.0,105550.0,1.64562725]
[1749866653208,0.2884742,105560.0,105550.0,1.9959682]
[1749866653394,0.2884742,105560.0,105550.0,1.90511697]
[1749866653596,0.2884742,105560.0,105550.0,1.99162224]
[1749866653796,0.2884742,105560.0,105550.0,1.64563823]
[1749866654005,0.2884742,105560.0,105550.0,1.62180771]
[1749866654301,0.2884742,105560.0,105550.0,1.63519985]
[1749866654501,0.2884742,105560.0,105550.0,2.00645141]
[1749866654805,0.2884742,105560.0,105550.0,2.00646456]
[1749866655006,0.2884742,105560.0,105550.0,1.99306614]
[1749866655196,0.2884742,105560.0,105550.0,2.00646455]
[1749866655503,0.2884742,105560.0,105550.0,2.00646465]
[1749866655700,0.2884742,105560.0,105550.0,1.99601262]
[1749866656007,0.2884742,105560.0,105550.0,2.00647078]
[1749866656193,0.2884742,105560.0,105550.0,1.99306609]
[1749866656394,0.2884742,105560.0,105550.0,2.0064617]
[1749866656595,0.2884742,105560.0,105550.0,1.99165658]
[1749866656800,0.2884742,105560.0,105550.0,1.99306609]
[1749866657002,0.2884742,105560.0,105550.0,2.06560552]
[1749866657204,0.2884742,105560.0,105550.0,2.0508004]
[1749866657394,0.2884742,105560.0,105550.0,2.06560552]
[1749866657805,0.2884742,105560.0,105550.0,2.0508004]
[1749866658004,0.2884742,105560.0,105550.0,2.05080039]
[1749866658204,0.2884742,105560.0,105550.0,2.03740504]
[1749866658504,0.2884742,105560.0,105550.0,2.04032566]
[1749866658695,0.2884742,105560.0,105550.0,1.67661153]
[1749866659003,0.2884742,105560.0,105550.0,2.0522163]
[1749866659203,0.2884742,105560.0,105550.0,2.04031213]
[1749866659401,0.2884742,105560.0,105550.0,2.03741162]
[1749866659607,0.2884742,105560.0,105550.0,2.06560248]
[1749866659807,0.2884742,105560.0,105550.0,2.06560922]
[1749866660099,0.2884742,105560.0,105550.0,1.69033838]
[1749866660302,0.2884742,105560.0,105550.0,0.73683098]
[1749866660505,0.2884742,105560.0,105550.0,1.70125728]
[1749866660702,0.2884742,105560.0,105550.0,1.69987784]
[1749866660898,0.2884742,105560.0,105550.0,1.6998684]
[1749866661105,0.2884742,105560.0,105550.0,2.0606684]
[1749866661303,0.2884742,105560.0,105550.0,1.71466796]
[1749866661509,0.2884742,105560.0,105550.0,1.71466574]
[1749866661702,0.2884742,105560.0,105550.0,2.06499849]
[1749866661901,0.2884742,105560.0,105550.0,2.0754178]
[1749866662106,0.2884742,105560.0,105550.0,1.714637]
[1749866662303,0.2884742,105560.0,105550.0,1.70418599]
[1749866662603,0.2884742,105560.0,105550.0,1.6907919]
[1749866662806,0.2884742,105560.0,105550.0,1.71466855]
[1749866663106,0.2884742,105560.0,105550.0,1.71466859]
[1749866663306,0.2884742,105560.0,105550.0,1.69986337]
[1749866663509,0.2884742,105560.0,105550.0,1.68939911]
[1749866663706,0.2884742,105560.0,105550.0,1.71465093]
[1749866663901,0.2884742,105560.0,105550.0,1.68645213]
[1749866664100,0.2884742,105560.0,105550.0,1.69079197]
[1749866664406,0.2884742,105560.0,105550.0,1.70419204]
[1749866664600,0.2884742,105560.0,105550.0,1.6998641]
[1749866664799,0.2884742,105560.0,105550.0,1.71466933]
[1749866664999,0.2884742,105560.0,105550.0,1.68645226]
[1749866665208,0.2884742,105560.0,105550.0,1.68645229]
[1749866665512,0.2884742,105560.0,105550.0,2.06205743]
[1749866665699,0.2884742,105560.0,105550.0,2.07546496]
[1749866666002,0.2884742,105560.0,105550.0,2.07546461]
[1749866666206,0.2884742,105560.0,105550.0,2.04725221]
[1749866666405,0.2884742,105560.0,105550.0,1.70125739]
[1749866666601,0.2884742,105560.0,105550.0,2.07547067]
[1749866666909,0.2884742,105560.0,105550.0,1.69986392]
[1749866667096,0.2884742,105560.0,105550.0,2.06205745]
[1749866667302,0.2884742,105560.0,105550.0,2.07544644]
[1749866667500,0.2884742,105560.0,105550.0,2.06063039]
[1749866667702,0.2884742,105560.0,105550.0,2.07543545]
[1749866668104,0.2884742,105560.0,105550.0,2.05016508]
[1749866668303,0.2884742,105560.0,105550.0,2.10609371]
[1749866668512,0.2884742,105560.0,105550.0,2.10609375]
[1749866668711,0.2884742,105560.0,105550.0,2.10609379]
[1749866668899,0.2884742,105560.0,105550.0,2.10609148]
[1749866669104,0.2884742,105560.0,105550.0,2.10609144]
[1749866669305,0.2884742,105560.0,105550.0,2.09128646]
[1749866669509,0.2884742,105560.0,105550.0,2.10609138]
[1749866669713,0.2884742,105560.0,105550.0,1.74528774]
[1749866669919,0.2884742,105560.0,105550.0,1.73055169]
[1749866670106,0.2884742,105560.0,105550.0,1.74534921]
[1749866670306,0.2884742,105560.0,105550.0,1.74534756]
[1749866670506,0.2884742,105560.0,105550.0,1.73488526]
[1749866670707,0.2884742,105560.0,105550.0,1.73054255]
[1749866670907,0.2884742,105560.0,105550.0,1.71714177]
[1749866671202,0.2884742,105560.0,105550.0,1.74537116]
[1749866671508,0.2884742,105560.0,105550.0,1.70667933]
[1749866671709,0.2884742,105560.0,105550.0,1.72010463]
[1749866672016,0.2884742,105560.0,105550.0,1.16522298]
[1749866672210,0.2884742,105560.0,105550.0,1.34417877]
[1749866672414,0.2884742,105560.0,105550.0,1.34121032]
[1749866672618,0.2884742,105560.0,105550.0,1.34418751]
[1749866672915,0.2884742,105560.0,105550.0,1.35465708]
[1749866673118,0.2884742,105560.0,105550.0,1.33074486]
[1749866673316,0.2884742,105560.0,105550.0,1.66419162]
[1749866673611,0.2254742,105560.0,105550.0,1.7128861]
[1749866673816,0.2254742,105560.0,105550.0,1.81661185]
[1749866674116,0.2254742,105560.0,105550.0,1.81525321]
[1749866674311,0.2254742,105560.0,105550.0,1.8152531]
[1749866674617,0.2254742,105560.0,105550.0,1.80180638]
[1749866674915,0.2254742,105560.0,105550.0,1.81959174]
[1749866675110,0.2254742,105560.0,105550.0,1.81959163]
[1749866675310,0.2254742,105560.0,105550.0,1.8152531]
[1749866675510,0.2254742,105560.0,105550.0,1.81959167]
[1749866675713,0.2254742,105560.0,105550.0,1.83005878]
[1749866676108,0.2254742,105560.0,105550.0,1.81661195]
[1749866676317,0.2254742,105560.0,105550.0,1.81959213]
[1749866676521,0.2254742,105560.0,105550.0,1.81661239]
[1749866676715,0.2254742,105560.0,105550.0,1.79133933]
[1749866676911,0.2254742,105560.0,105550.0,1.74700075]
[1749866677112,0.2254742,105560.0,105550.0,1.77091944]
[1749866677418,0.2254742,105560.0,105550.0,1.77091946]
[1749866677619,0.2254742,105560.0,105550.0,1.75746987]
[1749866677811,0.2254742,105560.0,105550.0,1.73219525]
[1749866678017,0.2254742,105560.0,105550.0,1.75611672]
[1749866678317,0.2254742,105560.0,105550.0,1.75611676]
[1749866678511,0.2254742,105560.0,105550.0,1.77092227]
[1749866678711,0.2254742,105560.0,105550.0,1.37610893]
[1749866678911,0.2254742,105560.0,105550.0,1.37747087]
[1749866679107,0.2871742,105560.0,105550.0,1.39089918]
[1749866679312,0.2871742,105560.0,105550.0,1.34852889]
[1749866679718,0.2871742,105560.0,105550.0,1.32790132]
[1749866680019,0.2871742,105560.0,105550.0,1.32792479]
[1749866680315,0.2871742,105560.0,105550.0,1.31311935]
[1749866680517,0.2871742,105560.0,105550.0,1.32792487]
[1749866680717,0.2871742,105560.0,105550.0,1.3279295]
[1749866681218,0.2871742,105560.0,105550.0,1.31745779]
[1749866681414,0.6479742,105560.0,105550.0,1.29966697]
[1749866681714,0.6479742,105560.0,105550.0,1.28353297]
[1749866681919,0.6479742,105560.0,105550.0,1.26872764]
[1749866682120,0.6479742,105560.0,105550.0,1.28352642]
[1749866682316,0.6479742,105560.0,105550.0,1.02298851]
[1749866682515,0.6479742,105560.0,105550.0,1.22585153]
[1749866682720,0.6479742,105560.0,105550.0,1.21237971]
[1749866682922,0.6479742,105560.0,105550.0,1.28203416]
[1749866683116,0.6479742,105560.0,105550.0,1.31503416]
[1749866683321,0.2871742,105560.0,105550.0,1.31373215]
[1749866683517,0.2871742,105560.0,105550.0,1.31676219]
[1749866683714,0.2871742,105560.0,105550.0,1.31806408]
[1749866684116,0.2871742,105560.0,105550.0,0.55865134]
[1749866684323,0.2871742,105560.0,105550.0,0.55431951]
[1749866684521,0.2871742,105560.0,105550.0,0.56907038]
[1749866684722,0.2871742,105560.0,105550.0,0.56907026]
[1749866684923,0.2871742,105560.0,105550.0,0.56907031]
[1749866685116,0.2871742,105560.0,105550.0,0.5690703]
[1749866685319,0.2871742,105560.0,105550.0,0.54081211]
[1749866685519,0.2871742,105560.0,105550.0,0.60087029]
[1749866685724,0.2871742,105560.0,105550.0,0.41007638]
[1749866685916,0.2871742,105560.0,105550.0,0.57694364]
[1749866686117,0.2254742,105560.0,105550.0,0.57261211]
[1749866686317,0.2254742,105560.0,105550.0,0.60541208]
[1749866686515,0.2254742,105560.0,105550.0,0.62021741]
[1749866686717,0.2254742,105560.0,105550.0,0.62317728]
[1749866686912,0.2254742,105560.0,105550.0,0.63498671]
[1749866687118,0.2254742,105560.0,105550.0,0.99578671]
[1749866687313,0.2254742,105560.0,105550.0,0.99439224]
[1749866687521,0.2254742,105560.0,105550.0,1.3791947]
[1749866687718,0.2254742,105560.0,105550.0,1.36873126]
[1749866687915,0.2254742,105560.0,105550.0,0.99578573]
[1749866688223,0.2254742,105560.0,105550.0,0.98840462]
[1749866688424,0.2254742,105560.0,105550.0,0.98842856]
[1749866689126,0.2254742,105560.0,105550.0,0.97498607]
[1749866689314,0.2254742,105560.0,105550.0,0.98842114]
[1749866689519,0.2254742,105560.0,105550.0,1.33874802]
[1749866689720,0.2254742,105560.0,105550.0,1.34912189]
[1749866689920,0.2254742,105560.0,105550.0,1.34913286]
[1749866690219,0.2254742,105560.0,105550.0,1.34913281]
[1749866690417,0.2254742,105560.0,105550.0,1.3491425]
[1749866690622,0.2254742,105560.0,105550.0,1.34914257]
[1749866690814,0.2254742,105560.0,105550.0,1.33869658]
[1749866691018,0.2254742,105560.0,105550.0,1.34916726]
[1749866691219,0.2254742,105560.0,105550.0,1.34916728]
[1749866691431,0.2254742,105560.0,105550.0,1.33869656]
[1749866691929,0.2254742,105560.0,105550.0,0.97789656]
[1749866692120,0.2254742,105560.0,105550.0,0.60970752]
[1749866692729,0.2254742,105560.0,105550.0,0.69281625]
[1749866692917,0.2254742,105560.0,105550.0,0.66892026]
[1749866693121,0.2254742,105560.0,105550.0,0.6793911]
[1749866693325,0.2254742,105560.0,105550.0,0.68234525]
[1749866693525,0.2254742,105560.0,105550.0,0.6823454]
[1749866693830,0.2254742,105560.0,105550.0,0.69279738]
[1749866694035,0.2254742,105560.0,105550.0,0.67799206]
[1749866694332,0.2254742,105560.0,105550.0,0.68233164]
[1749866694518,0.2254742,105560.0,105550.0,0.67799204]
[1749866694832,0.2254742,105560.0,105550.0,0.67799209]
[1749866695127,0.2254742,105560.0,105550.0,0.66458068]
[1749866695432,0.2254742,105560.0,105550.0,0.68233162]
[1749866695728,0.2254742,105560.0,105550.0,0.67799204]
[1749866695930,0.2254742,105560.0,105550.0,0.66892026]
[1749866696226,0.2254742,105560.0,105550.0,0.65411494]
[1749866696623,0.2254742,105560.0,105550.0,0.66752635]
[1749866696823,0.2254742,105560.0,105550.0,0.65411494]
[1749866697016,0.2254742,105560.0,105550.0,0.68233162]
[1749866697222,0.2254742,105560.0,105550.0,0.66892026]
[1749866697418,0.2254742,105560.0,105550.0,0.69280182]
[1749866697926,0.2254742,105560.0,105550.0,0.68233162]
[1749866698125,0.2254742,105560.0,105550.0,0.69280182]
[1749866698320,0.2254742,105560.0,105550.0,0.49907046]
[1749866698520,0.2254742,105560.0,105550.0,0.67927045]
[1749866698718,0.2254742,105560.0,105550.0,0.65399494]
[1749866698927,0.2254742,105560.0,105550.0,0.67788875]
[1749866699126,0.2254742,105560.0,105550.0,0.66880026]
[1749866699431,0.2254742,105560.0,105550.0,0.66741856]
[1749866699630,0.2254742,105560.0,105550.0,0.68222388]
[1749866699824,0.2254742,105560.0,105550.0,0.66741856]
[1749866700021,0.2254742,105560.0,105550.0,0.69269919]
[1749866700226,0.2254742,105560.0,105550.0,0.67789387]
[1749866700425,0.2254742,105560.0,105550.0,0.68222675]
[1749866700626,0.2254742,105560.0,105550.0,0.67789387]
[1749866700821,0.2254742,105560.0,105550.0,0.14095416]
[1749866700822,0.5354742,105560.0,105550.0,0.14095416]
[1749866701027,1.2196778,105560.0,105550.0,0.02844485]
[1749866701231,0.189391,105550.0,105540.0,0.04441277]
[1749866701432,0.1894089,105540.0,105530.0,0.27011703]
[1749866701732,0.2208089,105540.0,105530.0,0.27011703]
[1749866702120,0.2208089,105540.0,105530.0,0.0307]
[1749866702320,0.2208089,105540.0,105530.0,0.2109]
[1749866702526,0.2208089,105540.0,105530.0,0.2419]
[1749866702733,0.67983633,105540.0,105530.0,0.2727]
[1749866702934,0.68083633,105540.0,105530.0,0.2857]
[1749866703136,0.59206396,105540.0,105530.0,0.2857]
[1749866704031,0.59206396,105540.0,105530.0,0.6657]
[1749866704835,0.59306396,105540.0,105530.0,0.2907]
[1749866705137,0.59306396,105540.0,105530.0,0.6207]
[1749866705529,0.66983195,105540.0,105530.0,0.6207]
[1749866706037,0.66983195,105540.0,105530.0,0.2907]
[1749866706235,0.66983195,105540.0,105530.0,0.6407]
[1749866707233,0.30903195,105540.0,105530.0,0.6407]
[1749866707741,0.30903195,105540.0,105530.0,0.2907]
[1749866708038,0.30903195,105540.0,105530.0,0.6707]
[1749866708242,0.30903195,105540.0,105530.0,0.8601266]
[1749866708738,0.27763195,105540.0,105530.0,1.2209266]
[1749866713040,0.27763195,105540.0,105530.0,1.26324514]
[1749866713241,0.27763195,105540.0,105530.0,1.27805254]
[1749866714142,0.27763195,105540.0,105530.0,1.26324514]
[1749866714344,0.27763195,105540.0,105530.0,1.27636703]
[1749866714536,0.27763195,105540.0,105530.0,1.26324514]
[1749866714738,0.27763195,105540.0,105530.0,1.27805254]
[1749866715043,0.27763195,105540.0,105530.0,1.31741821]
[1749866715231,0.27763195,105540.0,105530.0,1.30429632]
[1749866715842,0.27763195,105540.0,105530.0,1.30261066]
[1749866716044,0.27763195,105540.0,105530.0,1.30261081]
[1749866716242,0.27763195,105540.0,105530.0,1.31741821]
[1749866716444,0.27763195,105540.0,105530.0,1.30429632]
[1749866716745,0.27763195,105540.0,105530.0,1.31741819]
[1749866716937,0.27763195,105540.0,105530.0,1.30429632]
[1749866717138,0.27763195,105540.0,105530.0,1.3174182]
[1749866717338,0.27763195,105540.0,105530.0,1.30261081]
[1749866717546,0.27763195,105540.0,105530.0,1.31741821]
[1749866717845,0.27763195,105540.0,105530.0,1.30261078]
[1749866718046,0.27763195,105540.0,105530.0,1.31741818]
[1749866718347,0.27763195,105540.0,105530.0,1.31741822]
[1749866718540,0.27763195,105540.0,105530.0,1.30429632]
[1749866718739,0.27763195,105540.0,105530.0,1.31741821]
[1749866719046,0.27763195,105540.0,105530.0,1.30266749]
[1749866719344,0.27763195,105540.0,105530.0,1.28429632]
[1749866719541,0.27763195,105540.0,105530.0,1.29747425]
[1749866719740,0.27763195,105540.0,105530.0,1.29745668]
[1749866720043,0.27763195,105540.0,105530.0,1.29746027]
[1749866720345,0.27763195,105540.0,105530.0,1.2826529]
[1749866720537,0.27763195,105540.0,105530.0,1.2974603]
[1749866720738,0.27763195,105540.0,105530.0,1.29746029]
[1749866721246,0.27763195,105540.0,105530.0,1.28265201]
[1749866721440,0.36640432,105540.0,105530.0,0.92265201]
[1749866721646,0.36640432,105540.0,105530.0,0.74409632]
[1749866721842,0.43220432,105540.0,105530.0,1.69545261]
[1749866722038,0.46440432,105540.0,105530.0,1.05273701]
[1749866722244,0.82520432,105540.0,105530.0,1.25704673]
[1749866722444,0.82520432,105540.0,105530.0,0.11463241]
[1749866722645,1.00536432,105540.0,105530.0,0.07235888]
[1749866722950,1.38501605,105540.0,105530.0,0.07236043]
[1749866723444,1.40501605,105540.0,105530.0,0.07257049]
[1749866723645,1.03501605,105540.0,105530.0,0.0725705]
[1749866723847,1.38501605,105540.0,105530.0,0.0725705]
[1749866724051,1.40801605,105540.0,105530.0,0.05557056]
[1749866724242,1.07701605,105540.0,105530.0,0.05757056]
[1749866724549,1.07701605,105540.0,105530.0,0.05757049]
[1749866724749,1.07701605,105540.0,105530.0,0.0575705]
[1749866725138,1.07701605,105540.0,105530.0,0.05757042]
[1749866725344,1.07701605,105540.0,105530.0,0.05756049]
[1749866725650,1.07701605,105540.0,105530.0,0.05752248]
[1749866725849,1.07701605,105540.0,105530.0,0.05752238]
[1749866726045,1.07701605,105540.0,105530.0,0.04269959]
[1749866726246,1.07701605,105540.0,105530.0,0.02924378]
[1749866726452,1.07701605,105540.0,105530.0,0.05747972]
[1749866726650,1.07701605,105540.0,105530.0,0.057463]
[1749866726846,1.04711743,105540.0,105530.0,0.02924378]
[1749866727052,1.04711743,105540.0,105530.0,0.0574572]
[1749866727252,1.04711743,105540.0,105530.0,0.05745715]
[1749866727451,1.04711743,105540.0,105530.0,0.04264778]
[1749866727754,1.04711743,105540.0,105530.0,0.04405313]
[1749866728253,1.04711743,105540.0,105530.0,0.05745709]
[1749866728447,1.04711743,105540.0,105530.0,0.0850038]
[1749866728652,1.04711743,105540.0,105530.0,0.04264777]